fUSD/lending_fUSD_20250120
["ID","MTS","AMOUNT","RATE_DAILY","PERIOD"]
[349662174,1737361849169,-155.12,0.00020591,2]
[349662176,1737361849184,-500.0,0.00020591,2]
[349662179,1737361849198,-4119.46,0.00020591,2]
[349662181,1737361849214,-746.72,0.00020591,2]
[349662184,1737361849228,-835.04,0.00020591,2]
[349662186,1737361849242,-1170.74,0.00020591,2]
[349662189,1737361849258,-920.84,0.00020591,2]
[349662191,1737361849272,-982.11,0.00020591,2]
[349662194,1737361849287,-2517.08,0.00020591,2]
[349662196,1737361849302,-810.73,0.00020591,2]
[349662199,1737361849316,-2588.62,0.00020591,2]
[349662202,1737361849332,-752.0,0.00020591,2]
[349662204,1737361849346,-668.2,0.00020591,2]
[349662207,1737361849360,-1348.09,0.00020591,2]
[349662209,1737361849375,-1475.17,0.00020591,2]
[349662212,1737361849390,-1288.73,0.00020591,2]
[349662214,1737361849405,-1298.32,0.00020591,2]
[349662215,1737361849420,-500.0,0.00020591,2]
[349662216,1737361849434,-500.0,0.00020591,2]
[349662217,1737361849448,-500.0,0.00020591,2]
[349662218,1737361849463,-1579.22,0.00020591,2]
[349662219,1737361849478,-500.0,0.00020591,2]
[349662220,1737361849492,-1139.38,0.00020591,2]
[349662221,1737361849506,-1484.65,0.00020591,2]
[349662222,1737361849520,-500.0,0.00020591,2]
[349662223,1737361849534,-3293.61,0.00020591,2]
[349662224,1737361849548,-500.0,0.00020591,2]
[349662225,1737361849563,-1617.0,0.00020591,2]
[349662226,1737361849578,-500.0,0.00020591,2]
[349662227,1737361849591,-558.87,0.00020591,2]
[349662228,1737361849605,-578.94,0.00020591,2]
[349662229,1737361849620,-500.0,0.00020591,2]
[349662230,1737361849634,-872.45,0.00020591,2]
[349662231,1737361849648,-503.25,0.00020591,2]
[349662232,1737361849663,-1187.73,0.00020591,2]
[349662233,1737361849679,-649.01,0.00020591,2]
[349662234,1737361849690,-735.75,0.00020591,2]
[349662235,1737361849699,-2029.29,0.00020591,2]
[349662236,1737361849708,-2628.84,0.00020591,2]
[349662237,1737361849718,-893.07,0.00020591,2]
[349662238,1737361849727,-500.0,0.00020591,2]
[349662239,1737361849735,-1748.8,0.00020591,2]
[349662240,1737361849744,-1177.12,0.00020591,2]
[349662241,1737361849754,-500.0,0.00020591,2]
[349662242,1737361849954,-560.01,0.00020591,2]
[349662243,1737361849965,-500.0,0.00020591,2]
[349662244,1737361849975,-1435.4,0.00020591,2]
[349662245,1737361849985,-673.83,0.00020591,2]
[349662246,1737361849995,-590.19,0.00020591,2]
[349662247,1737361850005,-500.0,0.00020591,2]
[349662248,1737361850014,-500.0,0.00020591,2]
[349662249,1737361850023,-1481.47,0.00020591,2]
[349662250,1737361850032,-500.0,0.00020591,2]
[349662251,1737361850041,-1306.79,0.00020591,2]
[349662252,1737361850051,-879.03,0.00020591,2]
[349662253,1737361850059,-620.82,0.00020591,2]
[349662254,1737361850069,-1490.84,0.00020591,2]
[349662255,1737361850078,-1002.92,0.00020591,2]
[349662256,1737361850088,-2404.1,0.00020591,2]
[349662257,1737361850097,-500.0,0.00020591,2]
[349662258,1737361850107,-1377.19,0.00020591,2]
[349662259,1737361850117,-500.0,0.00020591,2]
[349662260,1737361850126,-533.95,0.00020591,2]
[349662261,1737361850137,-916.23,0.00020591,2]
[349662262,1737361850147,-500.0,0.00020591,2]
[349662263,1737361850156,-2451.32,0.00020591,2]
[349662264,1737361850165,-3016.86,0.00020591,2]
[349662265,1737361850174,-500.0,0.00020591,2]
[349662266,1737361850186,-331.82793434,0.00020592,2]
[349662267,1737361850195,-414.27870983,0.00020592,2]
[349662268,1737361850203,-500.0,0.00020592,2]
[349662269,1737361850214,-500.0,0.00020592,2]
[349662270,1737361850221,-500.0,0.00020592,2]
[349662271,1737361850231,-267.08841891,0.00020592,2]
[349662272,1737361850240,-333.16165864,0.00020592,2]
[349662273,1737361850249,-500.0,0.00020592,2]
[349662274,1737361850258,-500.0,0.00020592,2]
[349662275,1737361850267,-500.0,0.00020592,2]
[349662276,1737361850276,-599.87,0.00020592,2]
[349662277,1737361850286,-500.0,0.00020592,2]
[349662278,1737361850295,-500.0,0.00020592,2]
[349662279,1737361850304,-500.0,0.00020592,2]
[349662280,1737361850314,-500.0,0.00020592,2]
[349662281,1737361850323,-871.83,0.00020592,2]
[349662282,1737361850332,-500.0,0.00020592,2]
[349662283,1737361850342,-500.0,0.00020592,2]
[349662284,1737361850351,-500.0,0.00020592,2]
[349662285,1737361850362,-541.14,0.00020592,2]
[349662286,1737361850372,-500.0,0.00020592,2]
[349662287,1737361850381,-500.0,0.00020592,2]
[349662288,1737361850390,-500.0,0.00020592,2]
[349662289,1737361850398,-5606.64,0.00020592,2]
[349662290,1737361850407,-500.0,0.00020592,2]
[349662291,1737361850416,-581.8,0.00020592,2]
[349662292,1737361850425,-500.0,0.00020592,2]
[349662293,1737361850434,-1000.14,0.00020592,2]
[349662294,1737361850443,-500.0,0.00020592,2]
[349662295,1737361850452,-2957.5,0.00020592,2]
[349662296,1737361850461,-500.0,0.00020592,2]
[349662297,1737361850470,-500.0,0.00020592,2]
[349662298,1737361850480,-1092.31,0.00020592,2]
[349662299,1737361850489,-1533.23,0.00020592,2]
[349662300,1737361850498,-500.0,0.00020592,2]
[349662301,1737361850507,-1811.79,0.00020592,2]
[349662302,1737361850516,-616.88,0.00020592,2]
[349662303,1737361850526,-500.0,0.00020592,2]
[349662304,1737361850535,-500.0,0.00020592,2]
[349662305,1737361850545,-1224.3,0.00020592,2]
[349662306,1737361850554,-500.0,0.00020592,2]
[349662307,1737361850564,-500.0,0.00020592,2]
[349662308,1737361850574,-500.0,0.00020592,2]
[349662309,1737361850583,-2395.22,0.00020592,2]
[349662310,1737361850591,-1306.82,0.00020592,2]
[349662311,1737361850600,-500.0,0.00020592,2]
[349662312,1737361850610,-584.74,0.00020593,2]
[349662313,1737361850619,-500.0,0.00020593,2]
[349662314,1737361850628,-500.0,0.00020593,2]
[349662315,1737361850637,-684.19,0.00020593,2]
[349662316,1737361850646,-500.0,0.00020593,2]
[349662317,1737361850655,-500.0,0.00020593,2]
[349662318,1737361850663,-657.74,0.00020593,2]
[349662319,1737361850673,-500.0,0.00020593,2]
[349662320,1737361850683,-531.84,0.00020593,2]
[349662321,1737361850693,-500.0,0.00020593,2]
[349662322,1737361850702,-500.0,0.00020593,2]
[349662323,1737361850711,-500.0,0.00020593,2]
[349662324,1737361850721,-500.0,0.00020593,2]
[349662325,1737361850730,-500.0,0.00020593,2]
[349662326,1737361850740,-500.0,0.00020593,2]
[349662327,1737361850749,-500.0,0.00020593,2]
[349662328,1737361850758,-500.0,0.00020593,2]
[349662329,1737361850767,-515.64,0.00020593,2]
[349662330,1737361850776,-895.39,0.00020593,2]
[349662331,1737361850786,-1145.99,0.00020593,2]
[349662332,1737361850795,-1210.51,0.00020593,2]
[349662333,1737361850805,-771.98,0.00020593,2]
[349662334,1737361850815,-528.36,0.00020593,2]
[349662335,1737361850824,-565.8,0.00020593,2]
[349662336,1737361850835,-500.0,0.00020593,2]
[349662337,1737361850845,-756.5,0.00020593,2]
[349662338,1737361850855,-500.0,0.00020593,2]
[349662339,1737361850866,-774.06,0.00020593,2]
[349662340,1737361850875,-500.0,0.00020593,2]
[349662341,1737361850885,-598.64,0.00020593,2]
[349662342,1737361850894,-762.8,0.00020593,2]
[349662343,1737361850904,-855.34,0.00020593,2]
[349662344,1737361850913,-500.0,0.00020593,2]
[349662345,1737361850923,-500.0,0.00020593,2]
[349662346,1737361850932,-500.0,0.00020593,2]
[349662347,1737361850942,-500.0,0.00020593,2]
[349662348,1737361850951,-500.0,0.00020593,2]
[349662349,1737361850961,-632.15,0.00020593,2]
[349662350,1737361850970,-500.0,0.00020593,2]
[349662351,1737361850980,-500.0,0.00020593,2]
[349662352,1737361850990,-500.0,0.00020593,2]
[349662353,1737361851000,-737.6,0.00020593,2]
[349662354,1737361851010,-500.0,0.00020593,2]
[349662355,1737361851020,-500.0,0.00020593,2]
[349662356,1737361851030,-520.66,0.00020593,2]
[349662357,1737361851039,-910.08,0.00020593,2]
[349662358,1737361851049,-500.0,0.00020593,2]
[349662359,1737361851061,-500.0,0.00020593,2]
[349662360,1737361851070,-708.44,0.00020593,2]
[349662361,1737361851081,-584.29,0.00020593,2]
[349662362,1737361851091,-500.0,0.00020593,2]
[349662363,1737361851101,-773.14,0.00020593,2]
[349662364,1737361851112,-500.0,0.00020593,2]
[349662365,1737361851122,-986.41,0.00020593,2]
[349662366,1737361851135,-597.48,0.00020593,2]
[349662367,1737361851145,-1422.12,0.00020593,2]
[349662368,1737361851156,-817.22,0.00020593,2]
[349662369,1737361851167,-615.99,0.00020593,2]
[349662370,1737361851179,-514.67,0.00020593,2]
[349662371,1737361851188,-229.66813706,0.00020659,2]
[349662372,1737361851197,-274.38343009,0.00020661,2]
[349662373,1737361851209,-20144.31236029,0.000207,2]
[349662374,1737361851218,-200.0,0.00020726,2]
[349662375,1737361851229,-229.66813706,0.00020728,2]
[349662376,1737361851238,-171.09,0.00020758,2]
[349662377,1737361851248,-500.0,0.00020764,2]
[349662378,1737361851258,-816.43,0.00020764,2]
[349662379,1737361851268,-268.47546259,0.00020783,2]
[349662380,1737361851278,-1000.0,0.00020788,2]
[349662381,1737361851287,-309.37663262,0.00020794,2]
[349662382,1737361851296,-229.66813706,0.00020797,2]
[349662383,1737361851306,-200.0,0.00020812,2]
[349662384,1737361851316,-760.34740073,0.00020812,2]
[349662385,1737361851325,-1546.5735396,0.00020815,2]
[349662386,1737361851335,-760.34740073,0.00020816,2]
[349662387,1737361851344,-200.0,0.00020822,2]
[349662388,1737361851354,-1546.5735396,0.00020823,2]
[349662389,1737361851366,-200.0,0.00020828,2]
[349662390,1737361851376,-309.37663262,0.00020831,2]
[349662391,1737361851385,-200.0,0.00020838,2]
[349662392,1737361851395,-309.37663262,0.00020839,2]
[349662393,1737361851404,-200.0,0.00020848,2]
[349662394,1737361851413,-760.34740073,0.00020851,2]
[349662395,1737361851423,-268.47546259,0.00020851,2]
[349662396,1737361851432,-200.0,0.00020851,2]
[349662397,1737361851442,-760.34740073,0.00020861,2]
[349662398,1737361851451,-309.37663262,0.00020861,2]
[349662399,1737361851460,-500.0,0.00020865,2]
[349662400,1737361851469,-500.0,0.00020865,2]
[349662401,1737361851478,-500.0,0.00020865,2]
[349662402,1737361851487,-500.0,0.00020865,2]
[349662403,1737361851496,-500.0,0.00020865,2]
[349662404,1737361851507,-500.0,0.00020865,2]
[349662405,1737361851516,-500.0,0.00020865,2]
[349662406,1737361851525,-500.0,0.00020865,2]
[349662407,1737361851534,-650.47,0.00020865,2]
[349662408,1737361851543,-500.0,0.00020865,2]
[349662409,1737361851553,-621.36,0.00020865,2]
[349662410,1737361851564,-663.13,0.00020865,2]
[349662411,1737361851574,-500.0,0.00020865,2]
[349662412,1737361851584,-565.317825,0.00020865,2]
[349662413,1737361851594,-1191.141328,0.00020865,2]
[349662414,1737361851605,-500.0,0.00020865,2]
[349662415,1737361851616,-500.0,0.00020865,2]
[349662416,1737361851625,-500.0,0.00020865,2]
[349662417,1737361851634,-656.35,0.00020865,2]
[349662418,1737361851644,-500.0,0.00020865,2]
[349662419,1737361851653,-500.0,0.00020865,2]
[349662420,1737361851663,-795.08,0.00020865,2]
[349662421,1737361851672,-970.02,0.00020865,2]
[349662422,1737361851681,-500.0,0.00020865,2]
[349662423,1737361851690,-691.02,0.00020865,2]
[349662424,1737361851700,-500.0,0.00020865,2]
[349662425,1737361851709,-893.53,0.00020865,2]
[349662426,1737361851720,-500.0,0.00020865,2]
[349662427,1737361851730,-593.43,0.00020865,2]
[349662428,1737361851739,-500.0,0.00020865,2]
[349662429,1737361851749,-1123.39,0.00020865,2]
[349662430,1737361851766,-500.0,0.00020865,2]
[349662431,1737361851780,-579.34,0.00020865,2]
[349662432,1737361851790,-844.48,0.00020865,2]
[349662433,1737361851801,-1090.23,0.00020865,2]
[349662434,1737361851811,-820.58,0.00020865,2]
[349662435,1737361851822,-500.0,0.00020865,2]
[349662436,1737361851831,-787.81,0.00020865,2]
[349662437,1737361851842,-1186.73,0.00020865,2]
[349662438,1737361851852,-774.07,0.00020865,2]
[349662439,1737361851867,-1283.85,0.00020865,2]
[349662440,1737361851878,-746.38,0.00020865,2]
[349662441,1737361851888,-500.0,0.00020865,2]
[349662442,1737361851898,-1540.96,0.00020865,2]
[349662443,1737361851908,-601.92,0.00020865,2]
[349662444,1737361851918,-714.72,0.00020865,2]
[349662445,1737361851927,-3147.24,0.00020865,2]
[349662446,1737361851937,-500.0,0.00020865,2]
[349662447,1737361851947,-887.53,0.00020865,2]
[349662448,1737361851959,-1919.96,0.00020865,2]
[349662449,1737361851968,-1408.13,0.00020865,2]
[349662450,1737361851978,-500.0,0.00020865,2]
[349662451,1737361851988,-1415.81,0.00020865,2]
[349662452,1737361851999,-500.0,0.00020865,2]
[349662453,1737361852008,-500.0,0.00020865,2]
[349662454,1737361852018,-1392.71,0.00020865,2]
[349662455,1737361852028,-3987.41,0.00020865,2]
[349662456,1737361852038,-634.32,0.00020865,2]
[349662457,1737361852047,-705.8,0.00020865,2]
[349662458,1737361852058,-1079.86,0.00020865,2]
[349662459,1737361852067,-500.0,0.00020865,2]
[349662460,1737361852077,-1453.19,0.00020865,2]
[349662461,1737361852087,-500.0,0.00020865,2]
[349662462,1737361852096,-626.73,0.00020865,2]
[349662463,1737361852105,-1685.41,0.00020865,2]
[349662464,1737361852116,-504.21,0.00020865,2]
[349662465,1737361852127,-500.0,0.00020865,2]
[349662466,1737361852142,-163.329348,0.00020865,2]
[349662467,1737361852153,-721.37,0.00020865,2]
[349662468,1737361852164,-500.0,0.00020865,2]
[349662469,1737361852175,-4119.46,0.00020865,2]
[349662470,1737361852184,-746.72,0.00020865,2]
[349662471,1737361852195,-835.04,0.00020865,2]
[349662472,1737361852205,-1170.74,0.00020865,2]
[349662473,1737361852216,-920.84,0.00020865,2]
[349662474,1737361852226,-982.11,0.00020865,2]
[349662475,1737361852236,-2517.08,0.00020865,2]
[349662476,1737361852246,-810.73,0.00020865,2]
[349662477,1737361852256,-2588.62,0.00020865,2]
[349662478,1737361852265,-752.0,0.00020865,2]
[349662479,1737361852276,-668.2,0.00020865,2]
[349662480,1737361852286,-1348.09,0.00020865,2]
[349662481,1737361852295,-1475.17,0.00020865,2]
[349662482,1737361852306,-1288.73,0.00020865,2]
[349662483,1737361852316,-1298.32,0.00020865,2]
[349662484,1737361852325,-500.0,0.00020865,2]
[349662485,1737361852335,-500.0,0.00020865,2]
[349662486,1737361852345,-1579.22,0.00020865,2]
[349662487,1737361852355,-500.0,0.00020865,2]
[349662488,1737361852366,-1139.38,0.00020865,2]
[349662489,1737361852376,-1484.65,0.00020865,2]
[349662490,1737361852386,-500.0,0.00020865,2]
[349662491,1737361852396,-3293.61,0.00020865,2]
[349662492,1737361852406,-500.0,0.00020865,2]
[349662493,1737361852416,-1617.0,0.00020865,2]
[349662494,1737361852560,-500.0,0.00020865,2]
[349662495,1737361852576,-558.87,0.00020865,2]
[349662496,1737361852587,-578.94,0.00020865,2]
[349662497,1737361852597,-500.0,0.00020865,2]
[349662498,1737361852609,-872.45,0.00020865,2]
[349662499,1737361852618,-503.25,0.00020865,2]
[349662500,1737361852629,-1187.73,0.00020865,2]
[349662501,1737361852644,-649.01,0.00020865,2]
[349662502,1737361852654,-735.75,0.00020865,2]
[349662503,1737361852663,-2029.29,0.00020865,2]
[349662504,1737361852673,-2628.84,0.00020865,2]
[349662505,1737361852683,-893.07,0.00020865,2]
[349662506,1737361852693,-1748.8,0.00020865,2]
[349662507,1737361852703,-1177.12,0.00020865,2]
[349662508,1737361852713,-500.0,0.00020865,2]
[349662509,1737361852724,-560.01,0.00020865,2]
[349662510,1737361852733,-500.0,0.00020865,2]
[349662511,1737361852743,-1435.4,0.00020865,2]
[349662512,1737361852753,-673.83,0.00020865,2]
[349662513,1737361852763,-590.19,0.00020865,2]
[349662514,1737361852773,-500.0,0.00020865,2]
[349662515,1737361852785,-500.0,0.00020865,2]
[349662516,1737361852795,-1481.47,0.00020865,2]
[349662517,1737361852806,-500.0,0.00020865,2]
[349662518,1737361852817,-1306.79,0.00020865,2]
[349662519,1737361852828,-879.03,0.00020865,2]
[349662520,1737361852838,-620.82,0.00020865,2]
[349662521,1737361852848,-1490.84,0.00020865,2]
[349662522,1737361852858,-1002.92,0.00020865,2]
[349662523,1737361852869,-2404.1,0.00020865,2]
[349662524,1737361852880,-500.0,0.00020865,2]
[349662525,1737361852890,-1377.19,0.00020865,2]
[349662526,1737361852900,-500.0,0.00020865,2]
[349662527,1737361852909,-533.95,0.00020865,2]
[349662528,1737361852918,-916.23,0.00020865,2]
[349662529,1737361852928,-500.0,0.00020865,2]
[349662530,1737361852937,-2451.32,0.00020865,2]
[349662531,1737361852947,-3016.86,0.00020865,2]
[349662532,1737361852956,-500.0,0.00020865,2]
[349662533,1737361852965,-229.66813706,0.00020866,2]
[349662534,1737361852974,-500.0,0.00020866,2]
[349662535,1737361852983,-500.0,0.00020866,2]
[349662536,1737361852993,-500.0,0.00020866,2]
[349662537,1737361853002,-500.0,0.00020866,2]
[349662538,1737361853012,-500.0,0.00020866,2]
[349662539,1737361853021,-500.0,0.00020866,2]
[349662540,1737361853030,-599.87,0.00020866,2]
[349662541,1737361853039,-500.0,0.00020866,2]
[349662542,1737361853049,-500.0,0.00020866,2]
[349662543,1737361853061,-500.0,0.00020866,2]
[349662544,1737361853069,-500.0,0.00020866,2]
[349662545,1737361853078,-871.83,0.00020866,2]
[349662546,1737361853087,-500.0,0.00020866,2]
[349662547,1737361853096,-500.0,0.00020866,2]
[349662548,1737361853105,-500.0,0.00020866,2]
[349662549,1737361853115,-541.14,0.00020866,2]
[349662550,1737361853126,-500.0,0.00020866,2]
[349662551,1737361853135,-500.0,0.00020866,2]
[349662552,1737361853145,-500.0,0.00020866,2]
[349662553,1737361853154,-5606.64,0.00020866,2]
[349662554,1737361853164,-500.0,0.00020866,2]
[349662555,1737361853173,-581.8,0.00020866,2]
[349662556,1737361853182,-1000.14,0.00020866,2]
[349662557,1737361853191,-500.0,0.00020866,2]
[349662558,1737361853200,-2957.5,0.00020866,2]
[349662559,1737361853210,-500.0,0.00020866,2]
[349662560,1737361853220,-500.0,0.00020866,2]
[349662561,1737361853230,-1092.31,0.00020866,2]
[349662562,1737361853239,-1533.23,0.00020866,2]
[349662563,1737361853249,-500.0,0.00020866,2]
[349662564,1737361853258,-1811.79,0.00020866,2]
[349662565,1737361853268,-616.88,0.00020866,2]
[349662566,1737361853277,-1224.3,0.00020866,2]
[349662567,1737361853286,-500.0,0.00020866,2]
[349662568,1737361853296,-500.0,0.00020866,2]
[349662569,1737361853305,-500.0,0.00020866,2]
[349662570,1737361853315,-2395.22,0.00020866,2]
[349662571,1737361853325,-1306.82,0.00020866,2]
[349662572,1737361853334,-500.0,0.00020866,2]
[349662573,1737361853343,-584.74,0.00020867,2]
[349662574,1737361853353,-500.0,0.00020867,2]
[349662575,1737361853363,-186.85,0.00020867,2]
[349662576,1737361853372,-684.19,0.00020867,2]
[349662577,1737361853382,-500.0,0.00020867,2]
[349662578,1737361853391,-500.0,0.00020867,2]
[349662579,1737361853401,-657.74,0.00020867,2]
[349662580,1737361853410,-500.0,0.00020867,2]
[349662581,1737361853419,-531.84,0.00020867,2]
[349662582,1737361853429,-500.0,0.00020867,2]
[349662583,1737361853438,-500.0,0.00020867,2]
[349662584,1737361853447,-500.0,0.00020867,2]
[349662585,1737361853457,-264.82577769,0.00020867,2]
[349662586,1737361853466,-500.0,0.00020867,2]
[349662587,1737361853477,-500.0,0.00020867,2]
[349662588,1737361853487,-500.0,0.00020867,2]
[349662589,1737361853496,-518.38241601,0.00020867,2]
[349662590,1737361853506,-515.64,0.00020867,2]
[349662591,1737361853515,-895.39,0.00020867,2]
[349662592,1737361853524,-1145.99,0.00020867,2]
[349662593,1737361853533,-1210.51,0.00020867,2]
[349662594,1737361853542,-771.98,0.00020867,2]
[349662595,1737361853552,-528.36,0.00020867,2]
[349662596,1737361853561,-565.8,0.00020867,2]
[349662597,1737361853570,-500.0,0.00020867,2]
[349662598,1737361853579,-756.5,0.00020867,2]
[349662599,1737361853588,-500.0,0.00020867,2]
[349662600,1737361853598,-774.06,0.00020867,2]
[349662601,1737361853607,-426.20358913,0.00020867,2]
[349662602,1737361853620,-598.64,0.00020867,2]
[349662603,1737361853629,-762.8,0.00020867,2]
[349662604,1737361853639,-855.34,0.00020867,2]
[349662605,1737361853647,-500.0,0.00020867,2]
[349662606,1737361853657,-500.0,0.00020867,2]
[349662607,1737361853666,-500.0,0.00020867,2]
[349662608,1737361853675,-500.0,0.00020867,2]
[349662609,1737361853685,-500.0,0.00020867,2]
[349662610,1737361853694,-632.15,0.00020867,2]
[349662611,1737361853704,-500.0,0.00020867,2]
[349662612,1737361853713,-500.0,0.00020867,2]
[349662613,1737361853722,-500.0,0.00020867,2]
[349662614,1737361853732,-737.6,0.00020867,2]
[349662615,1737361853741,-500.0,0.00020867,2]
[349662616,1737361853750,-500.0,0.00020867,2]
[349662617,1737361853759,-520.66,0.00020867,2]
[349662618,1737361853768,-910.08,0.00020867,2]
[349662619,1737361853778,-500.0,0.00020867,2]
[349662620,1737361853788,-500.0,0.00020867,2]
[349662621,1737361853797,-708.44,0.00020867,2]
[349662622,1737361853807,-584.29,0.00020867,2]
[349662623,1737361853817,-500.0,0.00020867,2]
[349662624,1737361853828,-773.14,0.00020867,2]
[349662625,1737361853845,-500.0,0.00020867,2]
[349662626,1737361853855,-986.41,0.00020867,2]
[349662627,1737361853866,-597.48,0.00020867,2]
[349662628,1737361853876,-1422.12,0.00020867,2]
[349662629,1737361853885,-817.22,0.00020867,2]
[349662630,1737361853895,-615.99,0.00020867,2]
[349662631,1737361853905,-514.67,0.00020867,2]
[349662632,1737361853914,-309.37663262,0.00020869,2]
[349662633,1737361853925,-200.0,0.00020871,2]
[349662634,1737361853935,-200.0,0.00020875,2]
[349662635,1737361853944,-32931.8373687,0.0002088,2]
[349662636,1737361853954,-1546.5735396,0.00020884,2]
[349662637,1737361853963,-1546.5735396,0.0002089,2]
[349662638,1737361853973,-268.47546259,0.00020894,2]
[349662639,1737361853983,-200.0,0.00020898,2]
[349662640,1737361853993,-160.734,0.000209,2]
[349662641,1737361854002,-274.38343009,0.00020908,2]
[349662642,1737361854012,-200.0,0.00020911,2]
[349662643,1737361854022,-268.47546259,0.00020913,2]
[349662644,1737361854031,-760.34740073,0.00020914,2]
[349662645,1737361854040,-200.0,0.00020915,2]
[349662646,1737361854054,-1546.5735396,0.00020924,2]
[349662647,1737361854064,-154.22328552,0.00020928,2]
[349662648,1737361854074,-229.66813706,0.00020934,2]
[349662649,1737361854084,-200.0,0.00020935,2]
[349662650,1737361854094,-268.47546259,0.0002094,2]
[349662651,1737361854103,-874.82,0.00020955,2]
[349662652,1737361854116,-5229.9429239,0.00020987,2]
[349662653,1737361854125,-1201.88159294,0.00021,2]
[349662654,1737361854136,-144222.16237488,0.00021,3]
[349662655,1737361854146,-32383.21613722,0.00021,2]
[349662656,1737361854156,-9708.73492988,0.00021,2]
[349662657,1737361854166,-40393.43280063,0.00021,2]
[349662658,1737361854177,-229.66813706,0.00021003,2]
[349662659,1737361854188,-500.0,0.00021038,2]
[349662660,1737361854197,-816.43,0.00021038,2]
[349662661,1737361854208,-229.66813706,0.00021072,2]
[349662662,1737361854218,-2339.0,0.000211,2]
[349662663,1737361854228,-502.36,0.0002111,2]
[349662664,1737361854238,-500.0,0.00021139,2]
[349662665,1737361854247,-500.0,0.00021139,2]
[349662666,1737361854257,-500.0,0.00021139,2]
[349662667,1737361854267,-500.0,0.00021139,2]
[349662668,1737361854276,-500.0,0.00021139,2]
[349662669,1737361854285,-500.0,0.00021139,2]
[349662670,1737361854295,-500.0,0.00021139,2]
[349662671,1737361854304,-500.0,0.00021139,2]
[349662672,1737361854314,-650.47,0.00021139,2]
[349662673,1737361854323,-586.59827524,0.00021139,2]
[349662674,1737361854335,-621.36,0.00021139,2]
[349662675,1737361854345,-663.13,0.00021139,2]
[349662676,1737361854354,-500.0,0.00021139,2]
[349662677,1737361854367,-565.317825,0.00021139,2]
[349662678,1737361854377,-1191.141328,0.00021139,2]
[349662679,1737361854387,-500.0,0.00021139,2]
[349662680,1737361854396,-500.0,0.00021139,2]
[349662681,1737361854405,-500.0,0.00021139,2]
[349662682,1737361854414,-656.35,0.00021139,2]
[349662683,1737361854424,-500.0,0.00021139,2]
[349662684,1737361854433,-500.0,0.00021139,2]
[349662685,1737361854443,-795.08,0.00021139,2]
[349662686,1737361854452,-970.02,0.00021139,2]
[349662687,1737361854462,-500.0,0.00021139,2]
[349662688,1737361854472,-691.02,0.00021139,2]
[349662689,1737361854481,-500.0,0.00021139,2]
[349662690,1737361854490,-893.53,0.00021139,2]
[349662691,1737361854499,-500.0,0.00021139,2]
[349662692,1737361854509,-593.43,0.00021139,2]
[349662693,1737361854519,-500.0,0.00021139,2]
[349662694,1737361854528,-1123.39,0.00021139,2]
[349662695,1737361854537,-500.0,0.00021139,2]
[349662696,1737361854546,-579.34,0.00021139,2]
[349662697,1737361854555,-844.48,0.00021139,2]